bitfinex-derivatives/quotes_ETHF0:USTF0_20250502
["timestamp","ask_amount","ask_price","bid_price","bid_amount"]
[1746172521786,1.6095,1820.4,1820.3,64.5537936]
[1746172524188,1.6095,1820.4,1820.3,61.3459936]
[1746172524387,2.70788,1820.4,1820.3,44.496]
[1746172524688,1.6095,1820.4,1820.3,45.59444]
[1746172525687,2.70788,1820.4,1820.3,44.496]
[1746172528592,2.70788,1820.4,1820.3,3.696]
[1746172529295,1.09844,1820.3,1820.2,44.0078]
[1746172529496,2.806,1820.3,1820.2,59.1479536]
[1746172530296,3.90444,1820.3,1820.2,61.7454536]
[1746172530495,3.90444,1820.3,1820.2,58.5376536]
[1746172530997,3.90444,1820.3,1820.2,44.496]
[1746172531299,3.90444,1820.3,1820.2,40.8]
[1746172534401,2.79494,1820.3,1820.2,54.8416536]
[1746172534796,2.79494,1820.3,1820.2,58.8569536]
[1746172534998,2.79494,1820.3,1820.2,59.9554536]
[1746172535200,2.79494,1820.3,1820.2,63.6514536]
[1746172535602,1.09844,1820.3,1820.2,62.5529536]
[1746172536204,1.09844,1820.3,1820.2,61.4407536]
[1746172536396,2.78314,1820.3,1820.2,61.4407536]
[1746172537106,1.0984,1820.4,1820.3,1.09842]
[1746172537404,1.0984,1820.4,1820.3,18.0158736]
[1746172537803,1.0984,1820.4,1820.3,16.9174536]
[1746172538604,1.0984,1820.4,1820.3,15.7453536]
[1746172538809,2.3038,1820.4,1820.3,15.7453536]
[1746172539305,2.3038,1820.4,1820.3,19.4413536]
[1746172539997,3.9411,1820.4,1820.3,19.4413536]
[1746172540198,3.9411,1820.4,1820.3,15.7453536]
[1746172540399,1.09856,1820.1,1820.0,2.54343]
[1746172540705,1.09886,1819.6,1819.5,2.9162]
[1746172540905,1.09886,1819.6,1819.5,43.7162]
[1746172541107,1.09886,1819.6,1819.5,60.2600836]
[1746172542310,1.6373,1819.8,1819.5,60.2600836]
[1746172542509,2.73604,1819.8,1819.7,12.8478836]
[1746172545310,0.70054103,1820.1,1819.7,17.8478836]
[1746172545508,0.70054103,1820.1,1820.0,12.8478836]
[1746172545708,1.79910103,1820.1,1820.0,16.4298836]
[1746172545910,1.79910103,1820.1,1820.0,57.2298836]
[1746172546108,3.40220103,1820.1,1820.0,60.9258836]
[1746172546408,3.40220103,1820.1,1820.0,62.5437836]
[1746172547106,2.70166,1820.1,1820.0,62.5437836]
[1746172549399,5.90946,1820.1,1820.0,48.078]
[1746172550308,5.90946,1820.1,1820.0,44.382]
[1746172552308,5.90946,1820.1,1820.0,3.582]
[1746172556017,1.09862,1820.0,1819.9,40.8]
[1746172556315,1.0988,1819.7,1819.6,3.2078]
[1746172556514,1.0988,1819.7,1819.6,6.7898]
[1746172556717,1.0988,1819.7,1819.6,60.4376836]
[1746172556911,1.0988,1819.7,1819.6,57.2298836]
[1746172560722,1.0988,1819.7,1819.6,58.8980836]
[1746172561415,3.2078,1819.9,1819.6,58.8980836]
[1746172561722,1.09868,1819.9,1819.8,12.8478836]
[1746172562124,1.09868,1819.9,1819.8,19.3553836]
[1746172567528,1.09858,1820.1,1819.9,1.09865]
[1746172567834,1.09855,1820.2,1820.1,12.8478836]
[1746172568226,1.09855,1820.2,1820.1,14.6076836]
[1746172569431,1.09856,1820.1,1820.0,7.278]
[1746172569624,1.09856,1820.1,1820.0,9.0378]
[1746172569824,1.09856,1820.1,1820.0,21.8856836]
[1746172571736,1.09856,1820.1,1819.3,7.31765848]
[1746172571934,1.09971,1818.2,1818.1,11.63572996]
[1746172572233,4.79571,1818.2,1818.1,52.43572996]
[1746172572627,6.51871,1818.2,1818.1,52.43572996]
[1746172572836,6.51871,1818.2,1818.1,54.02452996]
[1746172573136,3.33817302,1818.2,1818.1,40.8]
[1746172573327,3.33815063,1818.2,1818.1,40.8]
[1746172573528,2.82271,1818.2,1818.1,40.8]
[1746172573829,3.3381459,1818.2,1818.1,40.8]
[1746172574131,2.82271,1818.2,1818.1,40.8]
[1746172574527,3.33820961,1818.2,1818.1,40.8]
[1746172575031,2.82271,1818.2,1818.1,40.8]
[1746172575237,1.09977,1818.1,1818.0,51.59517992]
[1746172575439,6.03107,1818.1,1818.0,51.59517992]
[1746172576129,6.03107,1818.1,1818.0,92.39517992]
[1746172576835,2.82327,1818.1,1818.0,92.39517992]
[1746172577035,6.03107,1818.1,1818.0,92.39517992]
[1746172577437,6.03107,1818.1,1818.0,40.8]
[1746172579835,4.30757,1818.1,1818.0,40.8]
[1746172580037,1.09977,1818.1,1818.0,40.8]
[1746172580237,1.09977,1818.1,1818.0,44.496]
[1746172582327,1.09977,1818.1,1818.0,48.081]
[1746172582836,1.09977,1818.1,1818.0,49.7634]
[1746172583741,1.09976,1818.2,1818.0,49.7634]
[1746172583942,1.09976,1818.2,1818.0,50.86323]
[1746172584437,3.2078,1818.3,1818.0,8.9634]
[1746172584640,1.09968,1818.3,1818.1,1.09977]
[1746172584832,1.09968,1818.3,1818.2,1.6824]
[1746172585341,1.09968,1818.3,1818.2,42.4824]
[1746172596245,1.09968,1818.3,1818.2,40.8]
[1746172596650,1.09968,1818.3,1818.2,42.4973]
[1746172600649,1.5917486,1818.3,1818.2,42.4973]
[1746172601347,1.59176676,1818.3,1818.2,42.4973]
[1746172604553,0.49208676,1818.3,1818.2,43.59701]
[1746172604756,4.30739,1818.5,1818.3,1.09964]
[1746172605053,4.30739,1818.5,1818.4,1.7583]
[1746172605350,4.30739,1818.5,1818.4,42.5583]
[1746172606651,4.30733,1818.5,1818.4,42.5583]
[1746172609153,3.2078,1818.5,1818.4,46.2543]
[1746172609354,4.30733,1818.5,1818.4,46.2543]
[1746172610156,4.30733,1818.5,1818.4,42.5583]
[1746172611058,4.30733,1818.5,1818.4,40.8]
[1746172611452,4.30733,1818.5,1818.4,42.3975]
[1746172612057,3.2078,1818.5,1818.4,43.49709]
[1746172612355,4.30733,1818.5,1818.4,43.49709]
[1746172613056,1.6578,1818.7,1818.5,1.09953]
[1746172613359,2.75725,1818.7,1818.6,1.5971]
[1746172613654,5.96505,1818.7,1818.6,42.3971]
[1746172614257,5.96505,1818.7,1818.6,40.8]
[1746172614459,6.43081471,1818.7,1818.6,40.8]
[1746172617854,6.43076576,1818.7,1818.6,40.8]
[1746172618056,12.55472953,1818.7,1818.6,40.8]
[1746172618757,12.55472376,1818.7,1818.6,40.8]
[1746172618953,12.55469415,1818.7,1818.6,40.8]
[1746172619152,16.25069415,1818.7,1818.6,40.8]
[1746172619660,16.25073094,1818.7,1818.6,40.8]
[1746172620259,1.09959,1818.4,1818.3,3.689]
[1746172620660,1.09959,1818.4,1818.3,46.1123]
[1746172621562,1.6247,1818.5,1818.3,46.1123]
[1746172621563,2.72427,1818.5,1818.3,46.1123]
[1746172621761,1.09949,1818.6,1818.4,2.72283]
[1746172621961,2.72417,1818.6,1818.5,1.6233]
[1746172622159,1.09947,1818.6,1818.5,1.6233]
[1746172623961,1.09947,1818.6,1818.5,42.4233]
[1746172625270,2.74607,1818.6,1818.5,42.4233]
[1746172625460,2.74607,1818.6,1818.5,40.8]
[1746172626464,8.93291474,1818.6,1818.5,40.8]
[1746172627259,9.39885665,1818.6,1818.5,40.8]
[1746172628066,9.39899542,1818.6,1818.5,40.8]
[1746172629064,8.93291474,1818.6,1818.5,40.8]
[1746172629270,11.18684157,1818.6,1818.5,40.8]
[1746172629968,10.08756477,1818.6,1818.5,40.8]
[1746172630168,10.08755277,1818.6,1818.5,41.89953]
[1746172630370,9.62056475,1818.6,1818.5,41.89953]
[1746172630565,10.72003475,1818.6,1818.5,40.8]
[1746172631173,14.88311494,1818.6,1818.5,40.8]
[1746172631765,14.88305355,1818.6,1818.5,40.8]
[1746172631969,7.61010011,1818.6,1818.5,40.8]
[1746172633271,7.61003574,1818.6,1818.5,40.8]
[1746172633572,7.61010294,1818.6,1818.5,40.8]
[1746172634273,1.09965,1818.3,1818.2,3.2078]
[1746172634773,1.09965,1818.3,1818.2,44.0078]
[1746172635163,2.69615,1818.3,1818.2,44.0078]
[1746172636169,1.09965,1818.3,1818.2,44.0078]
[1746172636369,1.09965,1818.3,1818.2,45.746]
[1746172637377,2.81035,1818.3,1818.2,45.746]
[1746172638277,2.81035,1818.3,1818.2,44.0078]
[1746172638778,9.00197939,1818.3,1818.2,44.0078]
[1746172638979,23.81371359,1818.3,1817.9,1.1584]
[1746172639182,4.30763,1818.0,1817.9,1.1584]
[1746172639374,1.09995,1817.8,1817.7,5.2653]
[1746172639571,5.95772,1817.8,1817.4,13.3768018]
[1746172639771,1.10019,1817.4,1817.3,3.636]
[1746172639979,3.2078,1817.5,1817.3,45.53624]
[1746172640279,4.30794,1817.5,1817.4,1.6293]
[1746172642379,7.96381556,1817.5,1817.4,1.6293]
[1746172642887,8.55487556,1817.5,1817.4,1.6293]
[1746172643773,9.65500556,1817.5,1817.4,1.6293]
[1746172644574,8.55487556,1817.5,1817.4,1.6293]
[1746172644977,3.65587556,1817.5,1817.4,1.6293]
[1746172645181,4.75600556,1817.5,1817.4,1.6293]
[1746172645479,2.69373,1817.5,1817.4,1.6293]
[1746172646482,1.10019,1817.4,1817.3,44.436]
[1746172646684,2.69869,1817.4,1817.3,46.1131]
[1746172646878,1.5985,1817.4,1817.3,46.1131]
[1746172647183,1.5985,1817.4,1817.3,47.21335]
[1746172648382,2.69869,1817.4,1817.3,40.8]
[1746172649585,3.81069,1817.4,1817.3,40.8]
[1746172650286,18.64548314,1817.4,1816.9,4.73746]
[1746172650486,4.30821,1817.1,1816.9,4.73746]
[1746172650786,4.30821,1817.1,1817.0,40.8]
[1746172650975,3.2078,1817.1,1817.0,41.90044]
[1746172651178,3.2078,1817.1,1817.0,43.64924]
[1746172651582,4.30817,1817.1,1817.0,43.64924]
[1746172651787,5.90547,1817.1,1817.0,42.5488]
[1746172651981,5.90547,1817.1,1817.0,40.8]
[1746172653281,9.60147,1817.1,1817.0,40.8]
[1746172654188,5.90547,1817.1,1817.0,41.90044]
[1746172654388,5.90547,1817.1,1817.0,43.59234]
[1746172654782,5.90547,1817.1,1817.0,1.6919]
[1746172655185,9.60147,1817.1,1817.0,1.6919]
[1746172655386,8.5011,1817.1,1817.0,3.87914]
[1746172655780,8.5011,1817.1,1817.0,44.67914]
[1746172655986,6.9038,1817.1,1817.0,44.67914]
[1746172656179,3.2078,1817.1,1817.0,45.82214]
[1746172656780,3.2078,1817.1,1817.0,44.7217]
[1746172656986,3.2078,1817.1,1817.0,45.82214]
[1746172659987,6.0278,1817.3,1817.1,1.10032]
[1746172660187,4.9275,1817.3,1817.2,2.82951]
[1746172660889,1.1235,1817.5,1817.4,1.10019]
[1746172661090,3.86507,1817.5,1817.4,40.8]
[1746172661783,3.86507,1817.5,1817.4,42.4627]
[1746172662193,7.07287,1817.5,1817.4,42.4627]
[1746172663589,7.07287,1817.5,1817.4,43.56289]
[1746172664087,7.07287,1817.5,1817.4,42.4627]
[1746172664388,7.07287,1817.5,1817.4,40.8]
[1746172665193,10.76887,1817.5,1817.4,40.8]
[1746172666092,7.07287,1817.5,1817.4,40.8]
[1746172667491,7.07287,1817.5,1817.4,41.90019]
[1746172667683,7.07283,1817.5,1817.4,41.90019]
[1746172668081,7.07283,1817.5,1817.4,40.8]
[1746172668389,3.2078,1817.7,1817.6,1.10007]
[1746172669192,3.2078,1817.7,1817.6,3.79817]
[1746172669787,1.6731,1817.8,1817.7,1.10001]
[1746172669994,1.6731,1817.8,1817.7,2.69171]
[1746172671991,2.77305,1817.8,1817.7,2.69171]
[1746172672394,1.6731,1817.8,1817.7,2.69171]
[1746172673589,5.48621,1817.9,1817.7,2.69168]
[1746172673789,7.16931,1817.9,1817.7,2.69168]
[1746172673987,1.6323,1817.8,1817.7,2.69168]
[1746172674585,1.6323,1817.8,1817.7,1.5917]
[1746172675392,1.10004,1817.7,1817.5,1.10011]
[1746172675591,1.6323,1817.6,1817.5,1.10011]
[1746172675790,1.6323,1817.6,1817.5,2.76281]
[1746172676295,1.09999,1817.8,1817.6,1.10003]
[1746172676487,2.73229,1817.8,1817.6,2.76273]
[1746172676796,1.10001,1817.7,1817.6,2.76273]
[1746172676993,1.705,1817.7,1817.6,2.76273]
[1746172677995,2.80501,1817.7,1817.5,1.10009]
[1746172678396,1.10013,1817.5,1817.4,40.8]
[1746172678891,2.80513,1817.5,1817.4,40.8]
[1746172679093,6.50113,1817.5,1817.4,40.8]
[1746172680197,2.80513,1817.5,1817.4,40.8]
[1746172681091,1.705,1817.5,1817.4,41.90019]
[1746172681493,1.705,1817.5,1817.4,43.65989]
[1746172681794,5.36087556,1817.5,1817.4,43.65989]
[1746172682695,6.46100556,1817.5,1817.4,42.5597]
[1746172684395,2.80513,1817.5,1817.4,42.5597]
[1746172684593,2.80513,1817.5,1817.4,40.8]
[1746172686194,6.50113,1817.5,1817.4,40.8]
[1746172686395,6.95797663,1817.5,1817.4,40.8]
[1746172686792,1.10035,1817.2,1817.0,6.50251]
[1746172686993,1.7277,1817.1,1817.0,6.50251]
[1746172687394,2.82807,1817.1,1817.0,46.2021]
[1746172688799,2.82807,1817.1,1817.0,44.464]
[1746172689596,2.82807,1817.1,1817.0,40.8]
[1746172690302,6.52407,1817.1,1817.0,40.8]
[1746172691303,5.4237,1817.1,1816.7,3.664]
[1746172691600,4.30836,1816.8,1816.7,3.664]
[1746172691904,4.30836,1816.8,1816.7,44.464]
[1746172692102,3.2078,1816.8,1816.7,44.464]
[1746172692297,4.30836,1816.8,1816.7,46.2285]
[1746172692606,1.10063,1816.7,1816.5,2.26909]
[1746172692799,3.91813,1816.7,1816.5,4.03359]
[1746172693097,1.10068,1816.6,1816.5,2.9329]
[1746172693302,2.74348,1816.6,1816.5,1.1684]
[1746172693504,2.74348,1816.6,1816.5,41.9684]
[1746172694902,2.74348,1816.6,1816.5,43.7329]
[1746172695305,2.74348,1816.6,1816.5,41.9684]
[1746172695501,2.74348,1816.6,1816.5,40.8]
[1746172696300,1.6428,1816.6,1816.5,40.8]
[1746172696497,1.6428,1816.6,1816.5,41.90074]
[1746172696696,1.6428,1816.6,1816.5,40.8]
[1746172696902,1.6428,1816.6,1816.5,41.90074]
[1746172697806,2.74348,1816.6,1816.5,40.8]
[1746172698098,1.6428,1816.6,1816.5,41.90074]
[1746172698299,12.48351813,1816.8,1816.5,42.4316]
[1746172698503,12.48351813,1816.8,1816.7,1.10062]
[1746172698698,12.48351813,1816.8,1816.6,4.18594]
[1746172698899,15.26168813,1816.8,1816.7,1.1742]
[1746172699100,15.26168813,1816.8,1816.7,2.8058]
[1746172699796,15.26168813,1816.8,1816.7,1.1742]
[1746172701103,15.26168813,1816.8,1816.7,2.8058]
[1746172701305,14.17042314,1816.8,1816.7,2.8058]
[1746172701503,8.18445314,1816.8,1816.7,3.90642]
[1746172702000,3.696,1816.8,1816.7,3.90642]
[1746172702199,6.37553499,1817.0,1816.8,1.10052]
[1746172702407,6.37553499,1817.0,1816.9,1.6138]
[1746172704906,1.10054,1816.9,1816.7,2.2748]
[1746172705107,2.86634,1816.9,1816.8,1.6329]
[1746172705708,1.10056,1816.8,1816.7,1.1742]
[1746172706008,2.86636,1816.8,1816.7,1.1742]
[1746172706214,4.9736,1816.8,1816.5,40.8]
[1746172706412,1.10068,1816.6,1816.5,40.8]
[1746172706602,5.60276,1816.7,1816.5,41.90072]
[1746172706804,5.60276,1816.7,1816.5,43.53362]
[1746172707799,3.2833,1816.7,1816.6,1.10068]
[1746172708005,4.30837,1816.8,1816.6,4.28654]
[1746172708409,4.30837,1816.8,1816.7,1.6193]
[1746172708804,5.91237,1816.8,1816.7,1.6193]
[1746172709411,2.70457,1816.8,1816.7,1.6193]
[1746172710614,1.604,1816.8,1816.7,2.71992]
[1746172710813,2.70456,1816.8,1816.7,1.6193]
[1746172713307,2.61804,1816.9,1816.7,2.71992]
[1746172713604,2.61804,1816.9,1816.8,1.1501]
[1746172713808,4.33874,1816.9,1816.8,2.7985]
[1746172714309,8.03474,1816.9,1816.8,2.7985]
[1746172715203,4.33874,1816.9,1816.8,2.7985]
[1746172715413,4.33874,1816.9,1816.8,1.1501]
[1746172716015,1.10062,1816.7,1816.6,3.215]
[1746172716213,1.10062,1816.7,1816.6,5.42878]
[1746172716514,2.8213,1816.8,1816.6,5.42878]
[1746172716813,1.10062,1816.7,1816.6,1.10068]
[1746172717015,2.77592,1816.7,1816.6,1.10068]
[1746172717219,2.77592,1816.7,1816.6,2.86448]
[1746172717717,1.6753,1816.7,1816.6,2.86448]
[1746172718016,1.10057,1816.8,1816.6,2.86448]
[1746172718209,1.10057,1816.8,1816.7,1.7638]
[1746172718618,1.0939796,1816.8,1816.7,1.7638]
[1746172719309,6.84546499,1817.0,1816.8,1.10056]
[1746172719508,8.57496499,1817.0,1816.9,2.9036]
[1746172719710,9.67540499,1817.0,1816.9,2.9036]
[1746172720415,6.46760499,1817.0,1816.9,2.9036]
[1746172721509,6.46760499,1817.0,1816.9,1.2325]
[1746172722208,2.82994,1817.0,1816.9,1.2325]
[1746172723013,1.1005,1816.9,1816.8,1.6711]
[1746172723317,1.10056,1816.8,1816.7,3.70122]
[1746172723517,2.77144,1816.9,1816.7,5.33462]
[1746172723813,1.10056,1816.8,1816.7,5.33462]
[1746172724514,1.6709,1816.9,1816.7,5.33462]
[1746172724711,1.6709,1816.9,1816.7,4.234]
[1746172725118,1.10056,1816.8,1816.7,4.234]
[1746172725510,1.10056,1816.8,1816.7,5.33462]
[1746172726120,2.77144,1816.9,1816.7,5.33462]
[1746172726511,1.6709,1816.9,1816.8,1.10056]
[1746172726815,7.94590499,1817.0,1816.8,2.84522]
[1746172727015,9.68690499,1817.0,1816.8,2.84522]
[1746172727718,9.68690499,1817.0,1816.9,1.7447]
[1746172727922,6.47910499,1817.0,1816.9,1.7447]
[1746172728918,3.63766499,1817.0,1816.9,6.4522]
[1746172729117,3.63766499,1817.1,1817.0,1.10044]
[1746172729314,3.63766499,1817.1,1817.0,4.35564]
[1746172730115,1.10044,1817.0,1816.9,3.607]
[1746172730418,1.6746,1817.0,1816.9,6.4583]
[1746172732121,5.31226499,1817.0,1816.9,6.4583]
[1746172733519,3.63766499,1817.0,1816.9,6.4583]
[1746172733730,3.63766499,1817.0,1816.9,9.6661]
[1746172734124,3.63766499,1817.0,1816.9,13.3621]
[1746172735624,8.56256499,1817.2,1817.1,1.10037]
[1746172735817,6.45507499,1817.2,1817.1,1.10037]
[1746172736012,6.45507499,1817.2,1817.1,2.53707]
[1746172736423,5.35476499,1817.2,1817.1,2.53707]
[1746172737525,6.45507499,1817.2,1817.1,1.4367]
[1746172737725,6.45507499,1817.2,1817.1,2.53707]
[1746172737926,6.45507499,1817.2,1817.1,1.4367]
[1746172738425,2.81741,1817.2,1817.1,1.4367]
[1746172738624,2.81741,1817.2,1817.1,2.53707]
[1746172738826,1.7171,1817.2,1817.1,2.53707]
[1746172740330,2.81741,1817.2,1817.1,1.4367]
[1746172741423,1.10037,1817.1,1816.9,4.70745]
[1746172741629,7.37934,1817.0,1816.9,3.607]
[1746172743428,3.0711,1817.0,1816.9,3.607]
[1746172743635,4.17154,1817.0,1816.9,3.607]
[1746172744330,7.37934,1817.0,1816.9,3.607]
[1746172744533,7.80920499,1817.0,1816.9,3.607]
[1746172744727,7.80920499,1817.0,1816.9,4.7075]
[1746172744929,6.70876499,1817.0,1816.9,4.7075]
[1746172746029,3.63766499,1817.0,1816.9,4.7075]
[1746172746228,3.63766499,1817.0,1816.9,9.8461]
[1746172746428,3.63766499,1817.0,1816.9,11.5695]
[1746172746730,3.63766499,1817.0,1816.9,52.3695]
[1746172747536,3.63766499,1817.2,1817.1,1.10037]
[1746172748037,5.36476499,1817.2,1817.1,1.10037]
[1746172748228,5.36476499,1817.2,1817.1,43.48417]
[1746172749138,6.46507499,1817.2,1817.1,42.3838]
[1746172749338,5.36476499,1817.2,1817.1,43.48417]
[1746172749538,5.36476499,1817.2,1817.1,45.09737]
[1746172750132,3.63766499,1817.2,1817.1,45.09737]
[1746172751034,3.63766499,1817.3,1817.2,1.10031]
[1746172751239,3.63766499,1817.3,1817.2,11.25811]
[1746172752128,3.63766499,1817.3,1817.2,14.95411]
[1746172753529,5.23176499,1817.3,1817.2,14.95411]
[1746172754134,1.5941,1817.3,1817.2,14.95411]
[1746172755840,1.5941,1817.3,1817.2,11.61111]
[1746172756239,1.5941,1817.3,1817.2,7.91511]
[1746172756434,3.1055,1817.3,1817.2,7.91511]
[1746172757943,1.5941,1817.3,1817.2,7.91511]
[1746172758136,1.5941,1817.3,1817.2,13.26811]
[1746172758533,5.18696499,1817.5,1817.4,1.10019]
[1746172758741,6.90846499,1817.5,1817.4,1.10019]
[1746172760142,3.2708,1817.5,1817.4,1.10019]
[1746172760542,4.37096,1817.5,1817.3,2.75723]
[1746172760745,1.6467,1817.4,1817.3,2.75723]
[1746172763852,1.6467,1817.4,1817.3,4.24383]
[1746172764241,5.95469,1817.4,1817.3,3.696]
[1746172764447,11.41213344,1817.4,1817.3,3.696]
[1746172764850,15.90060641,1817.4,1817.3,3.696]
[1746172765051,17.55094466,1817.4,1816.9,3.602]
[1746172765251,3.2078,1817.0,1816.9,4.7025]
[1746172765652,4.7754,1817.0,1816.9,4.7025]
[1746172766142,5.87584,1817.0,1816.9,3.602]
[1746172766547,4.7754,1817.0,1816.9,3.602]
[1746172766739,4.7754,1817.0,1816.9,6.4645]
[1746172767451,4.7754,1817.0,1816.9,5.364]
[1746172767651,4.7754,1817.0,1816.9,6.4645]
[1746172767955,5.87584,1817.0,1816.9,5.364]
[1746172768149,8.0914,1817.0,1816.9,5.364]
[1746172768553,8.0914,1817.0,1816.9,6.4645]
[1746172768858,6.3307,1817.0,1816.9,6.4645]
[1746172769651,3.63766499,1817.1,1817.0,1.10044]
[1746172769851,3.63766499,1817.1,1817.0,2.78664]
[1746172770056,3.63766499,1817.1,1817.0,43.58664]
[1746172770455,4.73803499,1817.1,1817.0,42.4862]
[1746172770862,5.32126499,1817.1,1817.0,43.58664]
[1746172771052,5.32126499,1817.1,1817.0,42.4862]
[1746172771358,6.42163499,1817.1,1817.0,42.4862]
[1746172771555,5.32126499,1817.1,1817.0,43.58664]
[1746172771856,5.32126499,1817.1,1817.0,42.4862]
[1746172772360,5.32126499,1817.1,1817.0,43.58664]
[1746172772555,5.32126499,1817.1,1817.0,42.4862]
[1746172773658,5.32126499,1817.1,1817.0,43.58664]
[1746172775056,6.42163499,1817.1,1817.0,42.4862]
[1746172775258,5.32126499,1817.1,1817.0,42.4862]
[1746172775658,6.42163499,1817.1,1817.0,40.8]
[1746172776251,5.32126499,1817.1,1817.0,40.8]
[1746172777559,5.32126499,1817.1,1817.0,41.90044]
[1746172777857,5.32126499,1817.1,1817.0,43.50284]
[1746172779051,3.48554948,1817.1,1817.0,1.6024]
[1746172779658,1.10044,1817.0,1816.9,44.402]
[1746172779861,4.25264,1817.0,1816.9,46.0044]
[1746172780457,3.1522,1817.0,1816.9,47.1049]
[1746172781458,1.4522,1817.0,1816.9,47.1049]
[1746172782759,1.80198948,1817.1,1816.9,47.1049]
[1746172782960,1.80198948,1817.1,1817.0,1.7241]
[1746172783260,0.70157948,1817.1,1817.0,1.7241]
[1746172783559,0.70157948,1817.1,1817.0,2.82454]
[1746172783860,1.80194948,1817.1,1817.0,1.7241]
[1746172784059,1.80194948,1817.1,1817.0,2.82454]
[1746172784060,0.70157948,1817.1,1817.0,2.82454]
[1746172784261,1.80194948,1817.1,1817.0,1.7241]
[1746172784455,0.70157948,1817.1,1817.0,4.36424]
[1746172784652,0.70157948,1817.1,1817.0,3.2638]
[1746172784856,1.80194948,1817.1,1817.0,3.2638]
[1746172785962,1.80194948,1817.1,1817.0,1.7241]
[1746172786150,3.55104948,1817.1,1817.0,1.7241]
[1746172787763,9.01229182,1817.1,1817.0,1.7241]
[1746172789162,7.91192182,1817.1,1817.0,2.82454]
[1746172789659,6.16282182,1817.1,1817.0,2.82454]
[1746172789861,6.16282182,1817.1,1817.0,4.42464]
[1746172790154,6.16282182,1817.1,1816.9,44.402]
[1746172790155,6.16282182,1817.1,1816.9,3.602]
[1746172790361,4.30824,1817.0,1816.9,3.602]
[1746172790561,1.10044,1817.0,1816.9,3.602]
[1746172790861,1.10044,1817.0,1816.9,44.402]
[1746172791062,1.10044,1817.0,1816.9,49.2454]
[1746172791466,8.66569534,1817.0,1816.2,0.21668329]
[1746172791766,4.30848,1816.6,1816.4,1.1008]
[1746172791953,3.2078,1816.6,1816.5,42.4523]
[1746172792361,4.30848,1816.6,1816.5,42.4523]
[1746172793860,4.30848,1816.6,1816.5,40.8]
[1746172794865,4.30848,1816.6,1816.5,42.537]
[1746172795278,1.1008,1816.4,1816.3,3.602]
[1746172795765,3.3073,1816.5,1816.3,45.9395]
[1746172796168,1.1008,1816.4,1816.3,45.9395]
[1746172796572,1.1008,1816.4,1816.3,47.6206]
[1746172800279,6.85981543,1816.6,1816.3,47.6206]
[1746172800280,6.85981543,1816.6,1816.5,1.10074]
[1746172800571,1.10074,1816.5,1816.4,1.6568]
[1746172801666,4.8651,1816.6,1816.4,1.6568]
[1746172801866,1.10074,1816.5,1816.4,1.6568]
[1746172802471,2.86604,1816.5,1816.4,1.6568]
[1746172803568,1.1008,1816.4,1816.3,44.402]
[1746172803762,7.6935,1816.4,1816.3,44.402]
[1746172803965,7.6935,1816.4,1816.3,42.4183]
[1746172804171,3.2078,1816.4,1816.0,3.603]
[1746172804367,1.10098,1816.1,1816.0,3.603]
[1746172804568,1.10096,1816.2,1816.0,44.403]
[1746172804969,3.2078,1816.2,1816.0,44.403]
[1746172805168,3.2078,1816.2,1816.1,1.6969]
[1746172805363,1.10098,1816.1,1816.0,0.4203]
[1746172805565,4.70398,1816.1,1816.0,1e-05]
[1746172805870,2.75285,1815.9,1815.1,3.2078]
[1746172806062,3.2078,1815.8,1815.2,1.6969]
[1746172806263,3.2078,1815.6,1815.2,1.6969]
[1746172806568,3.2078,1816.4,1815.5,3.2078]
[1746172806767,3.2078,1816.6,1815.9,3.2078]
[1746172806963,1.6355,1816.7,1816.1,3.2078]
[1746172807168,1.6355,1816.7,1816.1,4.30874]
[1746172807363,3.2078,1816.4,1815.6,3.2078]
[1746172807565,3.2078,1816.2,1815.9,1.4865]
[1746172807767,3.2078,1816.2,1816.0,46.3689]
[1746172807972,4.30872,1816.2,1816.1,1.7163]
[1746172808367,1.10098,1816.1,1816.0,3.696]
[1746172808573,2.80398,1816.1,1816.0,3.696]
[1746172808767,7.80398,1816.1,1816.0,3.696]
[1746172808968,7.80398,1816.1,1816.0,0.80066]
[1746172809275,1.10134,1815.5,1815.4,3.872]
[1746172809471,3.2078,1815.6,1814.7,3.2078]
[1746172809672,1.10164,1815.1,1815.0,1.7163]
[1746172810069,1.10173,1814.9,1814.7,3.2078]
[1746172810372,4.30951,1814.9,1814.8,3.696]
[1746172810771,9.30951,1814.9,1814.8,3.696]
[1746172811071,9.30951,1814.9,1814.0,3.2078]
[1746172811072,3.2078,1814.9,1814.0,3.2078]
[1746172811268,1.10201,1814.4,1814.3,1.6465]
[1746172811768,3.18595,1814.7,1814.3,1.6465]
[1746172811969,1.10201,1814.4,1814.3,5.5195]
[1746172812171,2.75409,1815.1,1813.8,36.64345051]
[1746172812172,3.2078,1814.5,1813.8,40.51645051]
[1746172812369,4.30984,1814.4,1814.0,3.2078]
[1746172812566,3.2078,1814.4,1814.1,1.6465]
[1746172812970,3.2078,1814.2,1813.8,40.51645051]
[1746172813273,3.2078,1814.2,1813.4,0.40716316]
[1746172813274,3.2078,1814.0,1813.7,4.08]
[1746172813473,3.2078,1814.0,1813.7,5.7265]
[1746172813675,3.696,1814.2,1814.1,1.10219]
[1746172813871,3.696,1814.2,1814.1,4.08]
[1746172814072,3.2078,1814.8,1814.1,49.88]
[1746172814270,3.2078,1814.8,1814.2,6.4505]
[1746172814771,3.2078,1814.5,1814.3,1.10205]
[1746172814975,3.2078,1814.5,1814.4,5.7493]
[1746172815175,3.2078,1814.5,1814.4,9.4453]